bitfinex/quotes_SOLUSD_20250821
["timestamp","ask_amount","ask_price","bid_price","bid_amount"]
[1755740153221,63.75997835,187.54,187.53,0.03]
[1755740153738,65.09617092,187.54,187.53,0.03]
[1755740154048,39.59559401,187.52,187.51,0.03]
[1755740154242,58.85744578,187.52,187.51,0.03]
[1755740154646,59.53744578,187.52,187.51,0.03]
[1755740154835,63.25369678,187.52,187.51,0.03]
[1755740155347,22.13458155,187.52,187.51,0.03]
[1755740155534,18.41833055,187.52,187.51,0.03]
[1755740155738,55.97833055,187.52,187.51,0.03]
[1755740157443,59.529437,187.52,187.51,0.03]
[1755740161052,55.97833055,187.52,187.51,0.03]
[1755740162031,39.59559401,187.48,187.39,0.68]
[1755740162251,3.71625183,187.43,187.39,0.68]
[1755740162448,37.56,187.42,187.39,4.39625183]
[1755740162636,37.56,187.42,187.4,0.68]
[1755740162954,37.56,187.42,187.41,0.68]
[1755740164339,0.14216157,187.47,187.41,4.39625183]
[1755740164542,37.56,187.46,187.43,3.71625183]
[1755740164864,37.56,187.46,187.44,4.39625183]
[1755740165158,37.56,187.46,187.45,0.68]
[1755740165356,37.56,187.46,187.38,3.71625183]
[1755740165560,37.56,187.46,187.43,0.68]
[1755740165758,37.56,187.46,187.43,4.39625183]
[1755740166059,37.56,187.46,187.44,0.68]
[1755740166258,37.56,187.46,187.43,3.71625183]
[1755740166554,37.56,187.46,187.44,0.68]
[1755740167541,37.56,187.45,187.44,0.68]
[1755740168256,13.59559401,187.44,187.39,26.68]
[1755740168456,41.27625183,187.43,187.39,0.68]
[1755740168841,41.27625183,187.43,187.4,0.68]
[1755740169030,37.56,187.43,187.4,0.68]
[1755740169551,37.56,187.43,187.39,4.39625183]
[1755740170465,13.59559401,187.42,187.38,3.71625183]
[1755740170670,37.56,187.41,187.38,3.71625183]
[1755740170841,37.56,187.41,187.38,4.39625183]
[1755740171169,37.56,187.41,187.37,3.74625183]
[1755740171769,17.31184584,187.4,187.37,0.03]
[1755740171974,41.27625183,187.39,187.37,0.03]
[1755740172142,38.24,187.39,187.37,0.03]
[1755740172679,3.71625183,187.38,187.37,0.03]
[1755740174672,18.13400741,187.38,187.37,0.03]
[1755740174846,13.73775558,187.38,187.37,0.03]
[1755740175045,51.15559401,187.38,187.37,0.03]
[1755740175569,13.59559401,187.38,187.37,0.03]
[1755740175775,37.58,187.38,187.37,0.71]
[1755740175973,37.58,187.38,187.37,4.42625183]
[1755740176647,13.59559401,187.41,187.37,4.42625183]
[1755740176962,3.71625183,187.48,187.4,3.71625183]
[1755740177141,37.6,187.47,187.42,3.71625183]
[1755740177344,0.68,187.46,187.42,3.71625183]
[1755740177756,13.59559401,187.45,187.42,3.71625183]
[1755740177970,13.59559401,187.43,187.37,0.71]
[1755740178172,13.59559401,187.43,187.39,3.71625183]
[1755740178556,14.27559401,187.43,187.39,3.71625183]
[1755740178765,13.59559401,187.43,187.41,3.71625183]
[1755740178961,13.59559401,187.43,187.41,4.39625183]
[1755740179275,13.59559401,187.43,187.41,3.71625183]
[1755740179479,13.59559401,187.43,187.38,0.68]
[1755740179656,13.59559401,187.43,187.41,3.71625183]
[1755740180063,13.59559401,187.43,187.4,3.71625183]
[1755740180274,0.68,187.42,187.39,3.71625183]
[1755740180573,37.62,187.41,187.4,3.71625183]
[1755740180969,37.6,187.41,187.4,3.71625183]
[1755740181657,37.6,187.41,187.4,4.39625183]
[1755740181860,13.59559401,187.47,187.4,4.39625183]
[1755740182067,13.59559401,187.45,187.44,3.71625183]
[1755740182271,14.27559401,187.45,187.43,3.71625183]
[1755740183083,37.6,187.44,187.43,3.71625183]
[1755740184461,37.6,187.44,187.42,3.71625183]
[1755740184896,37.6,187.44,187.43,3.71625183]
[1755740186183,37.6,187.44,187.42,3.71625183]
[1755740186481,38.32,187.44,187.42,3.71625183]
[1755740186691,37.6,187.44,187.43,3.71625183]
[1755740187957,37.6,187.44,187.38,109.51625183]
[1755740187958,37.6,187.44,187.39,0.68]
[1755740188256,13.59559401,187.42,187.37,0.03]
[1755740188452,37.58,187.41,187.38,3.71625183]
[1755740188684,38.3,187.41,187.38,3.71625183]
[1755740188869,38.3,187.41,187.38,3.74625183]
[1755740189465,37.58,187.41,187.39,3.71625183]
[1755740189668,37.58,187.41,187.4,0.03]
[1755740191082,0.14216157,187.43,187.4,3.74625183]
[1755740191388,37.58,187.42,187.4,3.74625183]
[1755740191563,38.3,187.42,187.4,3.74625183]
[1755740191980,38.3,187.42,187.4,0.03]
[1755740192687,37.58,187.42,187.4,3.74625183]
[1755740193366,37.58,187.42,187.4,0.03]
[1755740193592,37.58,187.42,187.4,3.74625183]
[1755740193770,38.3,187.42,187.4,3.74625183]
[1755740193976,0.72,187.41,187.4,0.03]
[1755740194591,18.17400741,187.41,187.4,0.03]
[1755740194764,18.45833055,187.41,187.4,0.03]
[1755740195471,18.17400741,187.41,187.4,0.03]
[1755740197175,4.6575,187.39,187.38,0.03]
[1755740197370,42.2175,187.39,187.38,0.03]
[1755740197773,42.2175,187.39,187.38,4.42625183]
[1755740198696,42.2175,187.39,187.38,0.71]
[1755740199181,42.2175,187.39,187.38,4.42625183]
[1755740200688,42.9375,187.39,187.38,0.03]
[1755740201586,42.2175,187.39,187.38,3.74625183]
[1755740201886,42.9375,187.39,187.38,0.03]
[1755740202591,42.2175,187.39,187.38,0.03]
[1755740202801,4.6575,187.39,187.38,3.74625183]
[1755740202992,42.2175,187.39,187.38,3.74625183]
[1755740203289,4.6575,187.39,187.38,4.42625183]
[1755740203859,4.6575,187.39,187.38,3.74625183]
[1755740204469,4.6575,187.39,187.38,4.42625183]
[1755740207990,4.6575,187.39,187.38,39.47925251]
[1755740208603,4.6575,187.39,187.38,39.76357565]
[1755740210580,4.6575,187.39,187.38,29.74625183]
[1755740210800,5.3775,187.39,187.38,26.03]
[1755740210999,5.3775,187.39,187.38,3.74625183]
[1755740211384,4.6575,187.39,187.38,0.03]
[1755740211579,5.3775,187.39,187.38,3.74625183]
[1755740215318,5.3775,187.39,187.38,0.03]
[1755740220736,4.6575,187.39,187.38,3.74625183]
[1755740221011,42.2175,187.39,187.38,3.74625183]
[1755740221713,4.6575,187.39,187.38,3.74625183]
[1755740222201,5.3375,187.39,187.38,0.03]
[1755740223329,22.79150741,187.39,187.38,0.03]
[1755740224109,23.07583055,187.39,187.38,0.03]
[1755740225518,19.35957872,187.39,187.38,0.03]
[1755740225718,23.07583055,187.39,187.38,0.03]
[1755740227907,22.79150741,187.39,187.38,0.03]
[1755740228713,19.07525558,187.39,187.38,0.03]
[1755740229416,18.93309401,187.39,187.38,3.74625183]
[1755740229713,55.81309401,187.39,187.38,3.74625183]
[1755740230498,56.63525558,187.39,187.38,0.03]
[1755740230817,60.49366898,187.39,187.38,0.03]
[1755740231117,60.63583055,187.39,187.38,0.03]
[1755740232093,56.91957872,187.39,187.38,0.03]
[1755740232419,56.63525558,187.39,187.38,0.03]
[1755740236321,56.65525558,187.39,187.38,0.03]
[1755740236530,4.6575,187.39,187.38,4.42625183]
[1755740236831,42.2375,187.39,187.38,8.14250366]
[1755740236992,42.2375,187.39,187.38,3.74625183]
[1755740238896,42.9175,187.39,187.38,3.74625183]
[1755740239630,42.2375,187.39,187.38,3.74625183]
[1755740241500,42.2375,187.39,187.38,4.42625183]
[1755740242108,42.2375,187.39,187.38,3.74625183]
[1755740243362,56.49309401,187.39,187.38,0.03]
[1755740243646,56.63525558,187.39,187.38,0.03]
[1755740245504,60.63583055,187.39,187.38,0.03]
[1755740247439,86.63583055,187.39,187.38,0.03]
[1755740247605,90.20034375,187.39,187.38,0.03]
[1755740250327,86.63583055,187.39,187.38,0.03]
[1755740253549,86.35150741,187.39,187.38,0.03]
[1755740254049,18.25309401,187.39,187.38,0.03]
[1755740254236,55.83309401,187.39,187.38,0.03]
[1755740254638,18.25309401,187.39,187.38,4.42625183]
[1755740254947,42.2375,187.39,187.38,4.42625183]
[1755740255249,42.2375,187.39,187.38,0.71]
[1755740255425,42.2375,187.39,187.38,3.74625183]
[1755740255619,42.2375,187.39,187.38,4.42625183]
[1755740257150,42.2375,187.39,187.38,3.74625183]
[1755740257325,42.2375,187.39,187.38,4.42625183]
[1755740258742,42.2375,187.39,187.38,3.74625183]
[1755740259454,42.2375,187.39,187.38,0.03]
[1755740259455,60.35150741,187.39,187.38,0.03]
[1755740260133,56.63525558,187.39,187.38,0.03]
[1755740260370,60.35150741,187.39,187.38,0.03]
[1755740260842,60.33150741,187.39,187.38,0.03]
[1755740261060,60.61583055,187.39,187.38,0.03]
[1755740261222,64.18872511,187.39,187.38,0.03]
[1755740261825,59.53122511,187.39,187.38,0.03]
[1755740262029,55.53065014,187.39,187.38,0.03]
[1755740262236,51.29775558,187.39,187.38,0.03]
[1755740262439,51.15559401,187.39,187.38,0.03]
[1755740262742,51.17559401,187.39,187.38,0.03]
[1755740262932,13.59559401,187.39,187.38,0.03]
[1755740263126,51.17559401,187.39,187.38,0.03]
[1755740264250,0.06,187.4,187.38,4.42625183]
[1755740264558,37.56,187.39,187.38,3.74625183]
[1755740265424,37.56,187.39,187.38,0.71]
[1755740266245,37.56,187.39,187.38,4.42625183]
[1755740266428,36.06,187.39,187.38,4.42625183]
[1755740268848,0.06,187.4,187.38,4.42625183]
[1755740269038,37.56,187.39,187.38,0.03]
[1755740269241,0.06,187.4,187.39,26.0]
[1755740270233,0.06,187.4,187.39,30.39625183]
[1755740272026,0.06,187.4,187.39,29.71625183]
[1755740272537,0.06,187.4,187.39,30.39625183]
[1755740273134,0.06,187.4,187.39,29.71625183]
[1755740273830,0.06,187.4,187.39,30.39625183]
[1755740275544,0.06,187.4,187.39,29.71625183]
[1755740276453,0.06,187.4,187.39,30.39625183]
[1755740279046,0.06,187.4,187.39,35.73271588]
[1755740279846,0.06,187.42,187.39,36.01703902]
[1755740280152,0.06,187.42,187.41,3.71625183]
[1755740280569,0.06,187.44,187.43,31.33532518]
[1755740280872,0.06,187.44,187.43,35.05157701]
[1755740281063,0.06,187.44,187.43,35.73157701]
[1755740282263,0.06,187.44,187.43,30.39625183]
[1755740282843,0.06,187.44,187.43,35.73157701]
[1755740283960,37.62,187.51,187.44,0.14216157]
[1755740284147,37.62,187.51,187.5,3.71625183]
[1755740284479,38.27,187.51,187.5,3.71625183]
[1755740284776,37.62,187.51,187.5,3.71625183]
[1755740285271,0.06,187.51,187.5,3.71625183]
[1755740286349,0.71,187.51,187.5,3.71625183]
[1755740286863,0.06,187.51,187.5,3.71625183]
[1755740288973,0.06,187.51,187.5,29.71625183]
[1755740290472,0.06,187.51,187.5,30.39625183]
[1755740291060,0.06,187.51,187.5,4.39625183]
[1755740291447,0.06,187.51,187.5,29.71625183]
[1755740292586,0.06,187.51,187.5,26.0]
[1755740292587,0.71,187.51,187.5,26.0]
[1755740293078,0.71,187.51,187.5,29.71625183]
[1755740293668,0.06,187.51,187.5,29.71625183]
[1755740294872,0.06,187.51,187.5,26.0]
[1755740295072,0.06,187.51,187.5,29.71625183]
[1755740295269,0.06,187.51,187.5,26.0]
[1755740295582,0.06,187.51,187.5,29.71625183]
[1755740296775,0.06,187.51,187.5,109.51625183]
[1755740298374,0.06,187.51,187.5,114.82608969]
[1755740300098,0.06,187.51,187.5,111.10983786]
[1755740300580,0.06,187.51,187.5,114.82608969]
[1755740304588,0.77,187.51,187.5,114.82608969]
[1755740305787,0.77,187.51,187.5,79.8]
[1755740308482,0.77,187.51,187.48,3.71625183]
[1755740308985,0.77,187.51,187.47,29.71625183]
[1755740309202,0.77,187.51,187.46,3.71625183]
[1755740309360,0.77,187.51,187.46,83.51625183]
[1755740311082,0.77,187.51,187.46,79.8]
[1755740311394,0.77,187.51,187.46,83.51625183]
[1755740311886,3.71625183,187.5,187.45,26.0]
[1755740312063,0.77,187.51,187.45,26.0]
[1755740312064,4.42625183,187.49,187.45,26.0]
[1755740312257,0.71,187.48,187.44,0.03]
[1755740312455,0.71,187.48,187.44,26.03]
[1755740312784,0.71,187.47,187.44,26.03]
[1755740313081,0.71,187.47,187.44,29.74625183]
[1755740313384,0.71,187.49,187.45,3.71625183]
[1755740313593,0.71,187.48,187.45,3.71625183]
[1755740314660,3.71625183,187.5,187.45,3.71625183]
[1755740314886,3.71625183,187.5,187.44,31.4163028]
[1755740314887,0.71,187.47,187.44,35.13255463]
[1755740315091,0.71,187.48,187.44,35.13255463]
[1755740315275,0.71,187.48,187.45,3.71625183]
[1755740316265,37.6,187.51,187.45,3.71625183]
[1755740316465,37.6,187.51,187.49,3.71625183]
[1755740316694,37.6,187.51,187.48,26.0]
[1755740316992,0.71,187.5,187.48,29.71625183]
[1755740317388,37.6,187.51,187.48,29.71625183]
[1755740317566,38.31,187.51,187.48,29.71625183]
[1755740317769,0.71,187.5,187.47,3.71625183]
[1755740317970,0.71,187.5,187.46,3.71625183]
[1755740318289,41.31625183,187.51,187.46,3.71625183]
[1755740318290,0.71,187.49,187.46,3.71625183]
[1755740318592,38.31,187.51,187.47,3.71625183]
[1755740318782,37.6,187.51,187.47,3.71625183]
[1755740319093,0.71,187.5,187.48,3.71625183]
[1755740319884,37.6,187.51,187.48,3.71625183]
[1755740320093,37.6,187.51,187.49,3.71625183]
[1755740320292,0.06,187.51,187.5,3.71625183]
[1755740320473,0.06,187.51,187.5,30.37625183]
[1755740320877,0.06,187.51,187.5,29.71625183]
[1755740322783,0.06,187.51,187.5,30.37625183]
[1755740322983,0.06,187.51,187.5,29.71625183]
[1755740323300,0.06,187.51,187.5,30.37625183]
[1755740323885,0.06,187.51,187.5,29.71625183]
[1755740324483,0.06,187.51,187.5,114.84958516]
[1755740324825,0.06,187.51,187.5,115.7939083]
[1755740325574,0.06,187.51,187.5,105.8]
[1755740325775,0.06,187.51,187.5,109.51625183]
[1755740326404,0.06,187.51,187.5,110.17625183]
[1755740328510,0.06,187.51,187.5,109.51625183]
[1755740329610,0.06,187.51,187.5,115.50958516]
[1755740334513,0.06,187.51,187.5,115.7939083]
[1755740335010,0.06,187.51,187.5,117.9309453]
[1755740336103,3.20625183,187.6,187.5,117.9309453]
[1755740336410,3.20625183,187.6,187.55,3.71625183]
[1755740337085,51.13559401,187.62,187.55,3.71625183]
[1755740337310,3.71625183,187.6,187.55,3.71625183]
[1755740338207,0.69,187.59,187.55,3.71625183]
[1755740339496,51.13559401,187.62,187.55,3.71625183]
[1755740339497,3.77625183,187.61,187.55,3.71625183]
[1755740339711,0.69,187.58,187.55,3.71625183]
[1755740339912,0.06,187.61,187.57,3.71625183]
[1755740340124,0.69,187.6,187.59,3.71625183]
[1755740340489,0.06,187.61,187.59,3.71625183]
[1755740341014,0.75,187.61,187.58,19.74060883]
[1755740341318,0.75,187.61,187.58,16.024357]
[1755740341615,0.75,187.61,187.58,19.74060883]
[1755740342215,0.75,187.61,187.59,3.71625183]
[1755740343090,0.06,187.61,187.59,3.71625183]
[1755740344112,0.06,187.61,187.6,3.71625183]
[1755740344820,0.06,187.61,187.6,4.39625183]
[1755740344998,0.06,187.61,187.6,19.73889783]
[1755740345718,0.06,187.61,187.6,16.022646]
[1755740345905,0.75,187.61,187.59,29.71625183]
[1755740346293,0.75,187.61,187.6,3.716252]
[1755740346507,0.06,187.61,187.6,7.43250383]
[1755740348925,0.06,187.61,187.6,3.716252]
[1755740349128,0.06,187.61,187.6,7.43250383]
[1755740349313,0.06,187.61,187.6,8.11250383]
[1755740349624,0.06,187.61,187.6,7.43250383]
[1755740349926,0.75,187.61,187.6,7.43250383]
[1755740351015,0.75,187.61,187.59,79.8]
[1755740351407,0.75,187.61,187.59,83.516251]
[1755740351924,0.06,187.61,187.59,83.516251]
[1755740352120,0.75,187.61,187.59,83.516251]
[1755740352312,0.69,187.6,187.59,79.8]
[1755740353126,0.06,187.61,187.59,79.8]
[1755740353731,0.75,187.61,187.59,79.8]
[1755740354330,0.69,187.6,187.59,79.8]
[1755740355837,0.69,187.6,187.58,19.74060883]
[1755740356134,0.06,187.61,187.59,3.71625183]
[1755740356511,0.06,187.61,187.59,3.74625183]
[1755740356748,0.06,187.61,187.6,3.71625183]
[1755740356903,0.06,187.61,187.6,4.39625183]
[1755740357298,0.06,187.61,187.6,84.19625183]
[1755740357608,0.06,187.61,187.6,4.39625183]
[1755740358209,0.06,187.61,187.6,11.86275323]
[1755740358928,0.06,187.61,187.6,12.14707637]
[1755740360107,0.06,187.61,187.6,92.08923794]
[1755740361919,0.06,187.61,187.6,88.37298611]
[1755740362121,0.06,187.61,187.6,125.73082454]
[1755740362310,0.06,187.61,187.6,119.436011]
[1755740362509,0.06,187.61,187.6,123.83226283]
[1755740362736,0.06,187.61,187.6,149.83226283]
[1755740363444,0.06,187.61,187.6,149.15226283]
[1755740364522,0.06,187.61,187.6,129.42707637]
[1755740366947,0.06,187.61,187.6,129.56923794]
[1755740370228,0.06,187.61,187.6,143.16483195]
[1755740370641,0.06,187.63,187.62,79.88216157]
[1755740370944,0.06,187.63,187.62,121.0984134]
[1755740371245,0.06,187.63,187.62,123.8939674]
[1755740371431,0.06,187.63,187.62,129.22388958]
[1755740372248,0.06,187.63,187.62,125.50763775]
[1755740372438,0.06,187.65,187.64,26.0]
[1755740372630,0.06,187.65,187.64,151.09898837]
[1755740372992,0.1,187.66,187.65,0.14216157]
[1755740373252,0.81,187.7,187.67,26.0]
[1755740373451,0.81,187.7,187.67,72.54475398]
[1755740373650,0.1,187.7,187.67,73.20475398]
[1755740374025,0.1,187.7,187.67,153.37123869]
[1755740374242,0.1,187.7,187.68,0.42648471]
[1755740374557,0.71,187.75,187.72,26.0]
[1755740374759,0.71,187.75,187.74,3.71625183]
[1755740375550,0.71,187.75,187.74,19.72521783]
[1755740377057,37.5,187.81,187.74,28.76798505]
[1755740377058,0.71,187.78,187.74,28.76798505]
[1755740377357,0.71,187.78,187.77,3.71625183]
[1755740377658,42.13625183,187.84,187.77,3.71625183]
[1755740377856,42.13625183,187.84,187.79,3.71625183]
[1755740378243,0.71,187.83,187.79,3.71625183]
[1755740378650,4.42625183,187.83,187.77,9.04297707]
[1755740378853,4.42625183,187.82,187.77,3.71625183]
[1755740379028,0.71,187.81,187.77,3.71625183]
[1755740381259,4.42625183,187.81,187.76,3.71625183]
[1755740381445,0.71,187.8,187.76,3.71625183]
[1755740381639,0.71,187.8,187.76,79.74]
[1755740381842,3.71625183,187.79,187.76,79.74]
[1755740382038,0.71,187.78,187.76,79.74]
[1755740382241,0.71,187.78,187.76,85.12565295]
[1755740382654,13.59559401,187.83,187.76,85.12565295]
[1755740382855,0.71,187.78,187.76,88.84190478]
[1755740383765,0.71,187.8,187.77,3.71625183]
[1755740383966,0.71,187.79,187.77,3.71625183]
[1755740384262,0.71,187.79,187.77,19.72436283]
[1755740384666,0.71,187.81,187.78,3.71625183]
[1755740384970,0.71,187.8,187.78,3.71625183]
[1755740385476,0.71,187.8,187.77,95.748111]
[1755740385645,0.71,187.8,187.78,3.71625183]
[1755740387167,3.71625183,187.83,187.78,3.71625183]
[1755740387168,0.71,187.82,187.78,3.71625183]
[1755740387346,3.71625183,187.83,187.78,3.71625183]
[1755740387546,0.71,187.81,187.78,3.71625183]
[1755740389176,3.71625183,187.83,187.78,3.71625183]
[1755740389177,0.71,187.8,187.78,3.71625183]
[1755740389746,0.71,187.79,187.77,95.748111]
[1755740390076,0.71,187.78,187.77,79.74]
[1755740390378,0.71,187.8,187.77,83.456252]
[1755740390565,0.71,187.79,187.77,83.456252]
[1755740390768,4.42625183,187.79,187.77,79.74]
[1755740391272,0.71,187.78,187.77,79.74]
[1755740393588,38.23,187.81,187.77,79.74]
[1755740393777,0.06,187.81,187.77,79.74]
[1755740394086,4.40625183,187.8,187.77,79.74]
[1755740394264,0.69,187.79,187.74,87.17250283]
[1755740394671,4.40625183,187.79,187.74,92.51607478]
[1755740394875,37.54,187.81,187.74,92.51607478]
[1755740394876,0.69,187.78,187.74,92.51607478]
[1755740395060,0.69,187.77,187.74,92.51607478]
[1755740395259,0.69,187.76,187.74,92.51607478]
[1755740395494,0.69,187.76,187.74,88.79982295]
[1755740395661,0.69,187.76,187.74,92.51607478]
[1755740395982,0.69,187.75,187.7,79.74]
[1755740396284,0.69,187.75,187.7,95.753238]
[1755740396489,13.59559401,187.79,187.7,83.45625183]
[1755740396685,3.71625183,187.75,187.7,83.45625183]
[1755740396990,0.69,187.74,187.7,83.45625183]
[1755740397199,3.71625183,187.75,187.7,3.71625183]
[1755740397392,0.69,187.73,187.7,3.71625183]
[1755740397557,0.69,187.73,187.69,79.74]
[1755740397757,0.69,187.72,187.7,3.71625183]
[1755740397973,3.71625183,187.75,187.7,3.71625183]
[1755740398181,0.69,187.73,187.7,3.71625183]
[1755740398865,4.40625183,187.75,187.7,3.71625183]
[1755740399066,4.40625183,187.75,187.71,0.72]
[1755740399687,0.69,187.74,187.7,3.71625183]
[1755740399887,0.69,187.74,187.69,5.24526346]
[1755740399888,0.69,187.73,187.69,5.24526346]
[1755740400089,4.40625183,187.73,187.68,4.43625183]
[1755740400258,13.59559401,187.77,187.66,0.75]
[1755740400259,3.71625183,187.71,187.66,0.75]
[1755740400459,4.40625183,187.71,187.68,26.0]
[1755740400683,38.17,187.75,187.7,3.71625183]
[1755740400979,38.17,187.75,187.71,4.43625183]
[1755740401184,3.71625183,187.72,187.66,16.764947]
[1755740401388,0.69,187.71,187.66,16.044947]
[1755740401596,3.71625183,187.7,187.66,0.03]
[1755740402173,0.69,187.69,187.66,0.03]
[1755740403004,0.69,187.68,187.66,0.03]
[1755740403295,3.71625183,187.67,187.66,0.03]
[1755740403789,4.40625183,187.67,187.66,0.03]
[1755740403994,0.69,187.67,187.66,0.03]
[1755740404159,4.40625183,187.67,187.66,0.03]
[1755740407089,0.69,187.67,187.66,0.03]
[1755740407288,13.59559401,187.68,187.66,0.03]
[1755740407463,17.31184584,187.68,187.66,0.03]
[1755740407659,18.00184584,187.68,187.66,0.03]
[1755740407865,3.71625183,187.67,187.66,0.03]
[1755740408376,0.06,187.7,187.66,0.75]
[1755740408576,54.85184584,187.7,187.66,0.75]
[1755740408892,55.54184584,187.7,187.66,0.75]
[1755740409392,0.06,187.7,187.67,0.72]
[1755740409597,0.06,187.7,187.67,3.71625183]
[1755740409797,0.06,187.7,187.68,0.72]
[1755740410291,0.69,187.69,187.66,0.03]
[1755740410519,3.71625183,187.68,187.66,0.03]
[1755740410699,3.71625183,187.67,187.66,0.03]
[1755740410995,4.40625183,187.67,187.66,0.03]
[1755740411372,13.59559401,187.68,187.66,0.03]
[1755740411799,14.28559401,187.68,187.66,0.03]
[1755740412495,0.75,187.7,187.66,0.03]
[1755740412684,37.54,187.7,187.67,4.43625183]
[1755740412990,37.54,187.7,187.68,0.72]
[1755740414389,37.54,187.7,187.66,30.46625183]
[1755740414590,37.54,187.7,187.67,0.72]
[1755740414989,37.54,187.7,187.68,0.72]
[1755740415196,38.23,187.7,187.66,26.75]
[1755740416207,3.71625183,187.68,187.66,26.03]
[1755740416497,3.71625183,187.67,187.66,26.03]
[1755740416808,4.40625183,187.67,187.66,0.03]
[1755740417504,0.69,187.67,187.66,0.03]
[1755740417675,4.40625183,187.67,187.66,0.03]
[1755740420282,0.69,187.67,187.66,0.03]
[1755740420489,4.40625183,187.67,187.66,0.03]
[1755740420797,3.71625183,187.67,187.66,0.03]
[1755740420986,4.40625183,187.67,187.66,0.03]
[1755740422617,3.71625183,187.67,187.66,0.03]
[1755740423287,17.31184584,187.69,187.66,0.73]
[1755740424116,37.54,187.7,187.67,0.7]
[1755740424412,38.24,187.7,187.66,0.03]
[1755740424609,38.24,187.7,187.66,0.73]
[1755740425403,4.41625183,187.69,187.66,0.03]
[1755740425717,3.71625183,187.68,187.66,0.03]
[1755740425911,4.41625183,187.68,187.66,0.03]
[1755740426502,0.7,187.67,187.66,0.03]
[1755740427118,37.48,187.69,187.66,0.03]
[1755740427300,3.71625183,187.68,187.66,0.03]
[1755740427617,4.41625183,187.68,187.66,0.03]
[1755740427986,41.19625183,187.69,187.66,0.03]
[1755740428313,41.19625183,187.69,187.66,0.73]
[1755740428514,37.48,187.69,187.66,0.73]
[1755740428702,41.19625183,187.69,187.66,0.73]
[1755740428897,37.48,187.69,187.66,0.73]
[1755740429218,54.79184584,187.69,187.66,0.73]
[1755740429598,17.31184584,187.69,187.66,0.73]
[1755740429798,3.71625183,187.67,187.66,0.03]
[1755740430201,4.41625183,187.67,187.66,0.03]
[1755740433117,51.07559401,187.69,187.66,0.03]
[1755740433118,3.71625183,187.68,187.66,0.03]
[1755740433616,3.71625183,187.68,187.66,0.73]
[1755740434123,3.71625183,187.68,187.66,0.03]
[1755740434687,37.48,187.69,187.66,0.03]
[1755740434994,41.19625183,187.69,187.66,0.03]
[1755740435318,41.89625183,187.69,187.66,0.03]
[1755740437203,38.18,187.69,187.66,0.03]
[1755740437525,41.89625183,187.69,187.66,0.03]
[1755740438441,38.18,187.69,187.66,0.03]
[1755740438731,0.06,187.7,187.67,0.7]
[1755740439920,0.06,187.7,187.68,0.7]
[1755740440728,0.06,187.7,187.66,3.74625183]
[1755740440898,0.76,187.7,187.66,4.44625183]
[1755740441100,0.06,187.7,187.67,0.7]
[1755740441312,0.06,187.7,187.67,3.71625183]
[1755740441510,0.06,187.7,187.68,0.7]
[1755740443419,0.06,187.7,187.69,0.7]
[1755740443648,0.06,187.7,187.68,0.7]
[1755740443950,0.06,187.7,187.66,4.44625183]
[1755740444096,0.06,187.7,187.67,0.7]
[1755740444507,4.41625183,187.69,187.66,0.03]
[1755740444704,4.41625183,187.68,187.66,0.03]
[1755740445009,37.48,187.69,187.67,0.7]
[1755740447219,0.06,187.7,187.68,0.7]
[1755740447828,14.43315186,187.78,187.68,0.7]
[1755740447829,4.43315186,187.85,187.7,0.28432314]